[Event "3rd FIDE WCCC Rapid U12 2019"]
[Site "Minsk"]
[Date "2019.08.16"]
[Round "3.5"]
[White "Chyndygyr, Tamerlan"]
[Black "Berin, Artem"]
[Result "1/2-1/2"]
[ECO "A54"]
[WhiteElo "1984"]
[BlackElo "1802"]
[Annotator "NA"]
[PlyCount "196"]
[EventDate "2019.08.16"]
[EventType "swiss"]
[EventCountry "BLR"]
[SourceTitle "playchess.com"]
[Source "ChessBase"]
[SourceQuality "1"]
[TimeControl "600+5"]

1. d4 {[%emt 0:00:00]} Nf6 {[%emt 0:00:00]} 2. c4 {[%emt 0:00:00]} d6 {[%emt 0:00:00]} 3. Nc3 {[%emt 0:00:01]} e5 {[%emt 0:00:00]} 4. Nf3 {[%emt 0:00:06]} Nbd7 {[%emt 0:00:02]} 5. g3 {[%emt 0:00:01]} Be7 {[%emt 0:00:02]} 6. Bg2 {[%emt 0:00:01]} O-O {[%emt 0:00:02]} 7. O-O {[%emt 0:00:03]} c6 {[%emt 0:00:01]} 8. b3 {[%emt 0:00:02]} a5 {[%emt 0:00:12] A54: Old Indian Defence with Nf3, but without e4} (8... Re8 9. Bb2 e4 10. Ne1 d5 11. cxd5 cxd5 12. Nc2 Nb8 13. Qd2 Nc6 14. Rac1 Be6 15. Ba3 Bxa3 16. Nxa3 Rc8 17. Nc2 Qa5 18. Ne3 Rc7 {0-1 (56) Leenhouts,K (2377)-Lobron,E (2530) Amsterdam 2017}) 9. Bb2 {[%emt 0:00:02]} Re8 {[%emt 0:00:03]} 10. Qc2 {[%emt 0:00:07]} Bf8 {[%emt 0:00:07]} 11. Rad1 {[%emt 0:00:02]} Qc7 {[%emt 0:00:04]} 12. Rfe1 $146 {[%emt 0:00:13]} ({Predecessor:} 12. e4 exd4 13. Nxd4 Nc5 14. h3 Bd7 15. Nf5 Bxf5 16. exf5 Qb6 17. Na4 Nxa4 18. bxa4 {1-0 (41) Tomazini,A (2359)-Majer,J (2188) Pardubice 2016}) 12... exd4 {[%emt 0:00:09]} 13. Nxd4 {[%emt 0:00:03]} Nc5 {[%emt 0:00:02]} 14. a3 {[%emt 0:00:08]} Ne6 {[%emt 0:00:16]} 15. Nf5 {[%emt 0:00:43]} Nc5 {[%emt 0:01:54]} 16. Ne3 {[%emt 0:00:16]} Be6 {[%emt 0:00:17]} 17. b4 {[%emt 0:00:15]} Ncd7 {[%emt 0:01:10]} 18. Ne4 {[%emt 0:00:43]} Be7 {[%emt 0:00:46]} 19. Ng5 {[%emt 0:00:35]} Bf8 {[%emt 0:00:08]} 20. c5 {[%emt 0:01:04]} d5 {[%emt 0:01:02]} 21. f4 {[%emt 0:00:08]} h6 $11 {[%emt 0:00:34]} 22. Nf3 {[%emt 0:00:10]} Bg4 {[%emt 0:00:54]} 23. Ne5 {[%emt 0:00:06]} Nxe5 {[%emt 0:00:12]} 24. Bxe5 {[%emt 0:00:02]} Rxe5 {[%emt 0:00:01]} 25. fxe5 Qxe5 {[%emt 0:00:01]} 26. Nxg4 {[%emt 0:01:05]} Nxg4 {[%emt 0:00:02]} 27. e4 {[%emt 0:00:05]} d4 {[%emt 0:00:47]} 28. Qd3 {[%emt 0:00:15]} axb4 {[%emt 0:00:18]} 29. axb4 {[%emt 0:00:01]} Rd8 {[%emt 0:00:12]} 30. Qf3 {[%emt 0:00:59]} Qg5 {[%emt 0:00:49]} 31. h4 {[%emt 0:00:58]} Qg6 {[%emt 0:00:14]} 32. e5 {[%emt 0:00:39]} Be7 {[%emt 0:00:30]} 33. Re4 {[%emt 0:00:48]} h5 {[%emt 0:00:35]} 34. Rexd4 {[%emt 0:02:06]} Rxd4 {[%emt 0:00:01]} 35. Rxd4 {[%emt 0:00:01]} Nxe5 {[%emt 0:00:10]} 36. Qf4 {[%emt 0:00:24]} Bf6 {[%emt 0:00:23]} 37. Be4 {[%emt 0:00:01]} Qg4 {[%emt 0:00:34]} 38. Qxe5 {[%emt 0:00:17]} Qc8 {[%emt 0:00:23]} 39. Qxh5 {[%emt 0:00:28]} Bxd4+ {[%emt 0:00:02]} 40. Kg2 {[%emt 0:00:03]} g6 {[%emt 0:00:02]} 41. Qd1 {[%emt 0:00:03]} Qd8 {[%emt 0:00:05]} 42. Qd3 {[%emt 0:00:03]} Bf6 {[%emt 0:00:04]} 43. Qxd8+ {[%emt 0:00:14]} Bxd8 {[%emt 0:00:01]} 44. Kf3 {[%emt 0:00:05]} Bf6 {[%emt 0:00:10]} 45. Ke3 {[%emt 0:00:08]} Kf8 {[%emt 0:00:06]} 46. b5 {[%emt 0:00:02]} cxb5 {[%emt 0:00:04]} 47. Bxb7 {[%emt 0:00:01]} Ke7 {[%emt 0:00:02]} 48. Ba6 {[%emt 0:00:06]} b4 {[%emt 0:00:02]} 49. Bc4 {[%emt 0:00:01]} Be5 {[%emt 0:00:04]} 50. g4 {[%emt 0:00:03]} Bf6 {[%emt 0:00:08]} 51. h5 {[%emt 0:00:02]} gxh5 {[%emt 0:00:10]} 52. gxh5 {[%emt 0:00:01]} Bg5+ {[%emt 0:00:01]} 53. Ke4 {[%emt 0:00:01]} Kd7 {[%emt 0:00:11]} 54. Bd5 {[%emt 0:00:07]} f6 {[%emt 0:00:05]} 55. Kd4 {[%emt 0:00:09]} Kc7 {[%emt 0:00:04]} 56. Kc4 {[%emt 0:00:02]} Bd2 {[%emt 0:00:03]} 57. Be4 {[%emt 0:00:01]} Kd7 {[%emt 0:00:03]} 58. Bf5+ {[%emt 0:00:06]} Kc7 {[%emt 0:00:01]} 59. Be6 {[%emt 0:00:05]} Kc6 {[%emt 0:00:02]} 60. Bd5+ {[%emt 0:00:01]} Kd7 {[%emt 0:00:04]} 61. Kd3 {[%emt 0:00:05]} Bg5 {[%emt 0:00:03]} 62. Kc4 {[%emt 0:00:15]} Bd2 {[%emt 0:00:02]} 63. Be4 {[%emt 0:00:04]} Kc7 {[%emt 0:00:01]} 64. Bc2 {[%emt 0:00:03]} Kc6 {[%emt 0:00:06]} 65. Ba4+ {[%emt 0:00:03]} Kc7 {[%emt 0:00:02]} 66. Kd5 {[%emt 0:00:01]} Be3 {[%emt 0:00:05]} 67. Bc2 {[%emt 0:00:04]} Kd7 {[%emt 0:00:06]} 68. Bf5+ {[%emt 0:00:11]} Kc7 {[%emt 0:00:02]} 69. Kc4 {[%emt 0:00:01]} Bd2 {[%emt 0:00:01]} 70. Bc2 {[%emt 0:00:01]} Kc6 {[%emt 0:00:02]} 71. Be4+ {[%emt 0:00:04]} Kc7 {[%emt 0:00:01]} 72. Bd5 {[%emt 0:00:03]} Kd7 {[%emt 0:00:03]} 73. Kb5 {[%emt 0:00:03]} Kc7 {[%emt 0:00:03]} 74. Be6 {[%emt 0:00:03]} Kb7 {[%emt 0:00:07]} 75. Bc4 {[%emt 0:00:13]} Kc7 {[%emt 0:00:02]} 76. Bd5 {[%emt 0:00:02]} Kd7 {[%emt 0:00:23]} 77. Be4 {[%emt 0:00:11]} Kc7 78. Bd5 {[%emt 0:00:03]} f5 {[%emt 0:00:21]} 79. Be6 {[%emt 0:00:03]} f4 {[%emt 0:00:11]} 80. Bd5 {[%emt 0:00:01]} b3 {[%emt 0:00:15]} 81. Bxb3 {[%emt 0:00:03]} f3 {[%emt 0:00:01]} 82. Bd5 {[%emt 0:00:04]} f2 {[%emt 0:00:01]} 83. Bg2 {[%emt 0:00:02]} Be3 {[%emt 0:00:02]} 84. Kc4 {[%emt 0:00:02]} Kd7 {[%emt 0:00:07]} 85. Kd5 {[%emt 0:00:06]} Kc7 {[%emt 0:00:02]} 86. Bh3 {[%emt 0:00:03]} Bh6 {[%emt 0:00:06]} 87. Bf1 {[%emt 0:00:10]} Be3 {[%emt 0:00:02]} 88. Bb5 {[%emt 0:00:02]} Bh6 {[%emt 0:00:05]} 89. Ke4 {[%emt 0:00:02]} Bf8 {[%emt 0:00:05]} 90. c6 {[%emt 0:00:07]} f1=Q {[%emt 0:00:09]} 91. Bxf1 {[%emt 0:00:02]} Kxc6 {[%emt 0:00:00]} 92. Kf5 {[%emt 0:00:01]} Kd7 {[%emt 0:00:02]} 93. Kg6 {[%emt 0:00:01]} Ke7 {[%emt 0:00:01]} 94. Bc4 {[%emt 0:00:02]} Ke8 {[%emt 0:00:04]} 95. Bb5+ {[%emt 0:00:13]} Kd8 {[%emt 0:00:04]} 96. Kf7 {[%emt 0:00:02]} Ba3 {[%emt 0:00:04]} 97. h6 {[%emt 0:00:05]} Bb2 {[%emt 0:00:01]} 98. h7 {[%emt 0:00:02]} Kc7 {[%emt 0:00:01]} 1/2-1/2

[Event "3rd FIDE WCCC Rapid U12 2019"]
[Site "Minsk"]
[Date "2019.08.16"]
[Round "3.6"]
[White "Yatchenko, Leonid"]
[Black "Saveljev, Ivan"]
[Result "1/2-1/2"]
[ECO "B34"]
[WhiteElo "1587"]
[BlackElo "2040"]
[Annotator "NA"]
[PlyCount "129"]
[EventDate "2019.08.16"]
[EventType "swiss"]
[EventCountry "BLR"]
[SourceTitle "playchess.com"]
[Source "ChessBase"]
[SourceQuality "1"]
[TimeControl "600+5"]

1. e4 {[%emt 0:00:00]} c5 {[%emt 0:00:00]} 2. Nf3 {[%emt 0:00:00]} Nc6 {[%emt 0:00:00]} 3. d4 {[%emt 0:00:00]} cxd4 {[%emt 0:00:00]} 4. Nxd4 {[%emt 0:00:01]} Nf6 {[%emt 0:00:00]} 5. Nc3 {[%emt 0:00:02]} e5 {[%emt 0:00:01]} 6. Ndb5 {[%emt 0:00:03]} d6 {[%emt 0:00:01]} 7. a4 {[%emt 0:00:01]} a6 {[%emt 0:00:01]} 8. Na3 {[%emt 0:00:01]} Be6 {[%emt 0:00:05]} 9. Bg5 {[%emt 0:00:09]} Be7 {[%emt 0:00:02]} 10. Bc4 {[%emt 0:00:12]} O-O {[%emt 0:00:17]} 11. Bxf6 {[%emt 0:00:06]} Bxf6 {[%emt 0:00:07]} 12. Nd5 {[%emt 0:00:04]} Bxd5 {[%emt 0:00:18] B33: Sicilian: Pelikan and Sveshnikov Variations} (12... Bg5 13. O-O Kh8 14. c3 Rc8 15. Qe2 Qe8 16. b4 Ne7 17. Nb6 Rc6 18. a5 Bxc4 19. Naxc4 f5 20. exf5 Nxf5 21. Rad1 h5 22. Nd5 g6 23. Nd2 Bxd2 24. Rxd2 {½-½ (52) Kovchan,A (2546)-Timofeev,A (2558) St Petersburg 2002}) 13. Bxd5 {[%emt 0:00:03]} Qc7 {[%emt 0:00:31]} 14. c3 {[%emt 0:00:05]} Rfd8 {[%emt 0:00:30]} 15. O-O {[%emt 0:00:04]} Rac8 $146 {[%emt 0:00:06]} ({Predecessor:} 15... Rd7 16. Qd3 Ne7 17. Rfd1 Rc8 18. Rac1 Qd8 19. Nc4 Nxd5 20. Qxd5 {1-0 (80) Todorovic,N (1974)-Kovacevic,M (1802) Vrnjacka Banja 2012}) 16. Qe2 {[%emt 0:00:17]} Ne7 {[%emt 0:01:25]} 17. Rfd1 {[%emt 0:00:10]} Qb8 {[%emt 0:02:23]} 18. Rd3 {[%emt 0:01:52]} b5 {[%emt 0:00:33]} 19. Nc2 {[%emt 0:00:24]} bxa4 {[%emt 0:00:17]} 20. Ne3 {[%emt 0:00:02]} Qb5 {[%emt 0:00:20]} 21. Qc2 {[%emt 0:00:46]} Rb8 {[%emt 0:00:27]} 22. Rd2 {[%emt 0:00:02]} Bg5 {[%emt 0:00:11]} 23. Qxa4 {[%emt 0:00:27]} Nxd5 {[%emt 0:01:10]} 24. Qxb5 {[%emt 0:00:23]} Rxb5 {[%emt 0:00:14]} 25. exd5 {[%emt 0:00:02]} a5 {[%emt 0:00:18]} 26. c4 {[%emt 0:02:08]} Rb4 {[%emt 0:00:14]} 27. Rxa5 {[%emt 0:00:11]} Bxe3 {[%emt 0:00:13]} 28. fxe3 {[%emt 0:00:01]} Rxc4 {[%emt 0:00:01]} 29. h3 {[%emt 0:00:21]} g6 {[%emt 0:00:15]} 30. Kh2 {[%emt 0:00:06]} Kg7 {[%emt 0:00:04]} 31. Ra7 {[%emt 0:00:06]} Kg8 {[%emt 0:00:11]} 32. g4 {[%emt 0:00:07]} Rdc8 {[%emt 0:00:08]} 33. Rf2 {[%emt 0:00:10]} R4c7 {[%emt 0:00:06]} 34. Ra6 {[%emt 0:00:16]} Rc2 {[%emt 0:00:37]} 35. Kg3 {[%emt 0:00:18]} Rxf2 {[%emt 0:00:19]} 36. Kxf2 {[%emt 0:00:02]} Rc2+ {[%emt 0:00:04]} 37. Kf3 {[%emt 0:00:04]} Rxb2 {[%emt 0:00:03]} 38. Rxd6 {[%emt 0:00:01]} Kf8 {[%emt 0:00:05]} 39. Rd8+ {[%emt 0:00:06]} Ke7 {[%emt 0:00:11]} 40. Rh8 {[%emt 0:00:03]} Rb5 {[%emt 0:00:26]} 41. Ke4 {[%emt 0:00:08]} Rb4+ {[%emt 0:00:02]} 42. Kf3 {[%emt 0:00:39]} Rb5 {[%emt 0:00:24]} 43. Rxh7 {[%emt 0:00:03]} Rxd5 {[%emt 0:00:03]} 44. h4 {[%emt 0:00:23]} Kf6 {[%emt 0:00:38]} 45. h5 {[%emt 0:00:44]} gxh5 {[%emt 0:00:10]} 46. gxh5 {[%emt 0:00:01]} Ra5 {[%emt 0:00:02]} 47. Rh8 {[%emt 0:00:16]} Kg7 {[%emt 0:00:03]} 48. Re8 {[%emt 0:00:15]} Kf6 {[%emt 0:00:15]} 49. Rg8 {[%emt 0:00:40]} Ra1 {[%emt 0:00:04]} 50. Kg2 {[%emt 0:00:32]} Ra2+ {[%emt 0:00:01]} 51. Kg3 {[%emt 0:00:00]} Ra1 {[%emt 0:00:03]} 52. Rg4 {[%emt 0:00:03]} Rh1 {[%emt 0:00:12]} 53. Rh4 {[%emt 0:00:02]} Rg1+ {[%emt 0:00:02]} 54. Kf3 {[%emt 0:00:03]} Rg8 {[%emt 0:00:04]} 55. Ke4 {[%emt 0:00:09]} Ra8 {[%emt 0:00:01]} 56. Kf3 {[%emt 0:00:05]} Kg5 {[%emt 0:00:05]} 57. Rh1 {[%emt 0:00:05]} f5 {[%emt 0:00:01]} 58. h6 {[%emt 0:01:02]} Rh8 {[%emt 0:00:02]} 59. h7 {[%emt 0:00:04]} Kg6 {[%emt 0:00:02]} 60. Rg1+ {[%emt 0:00:13]} Kxh7 {[%emt 0:00:02]} 61. Rg5 {[%emt 0:00:02]} Rf8 {[%emt 0:00:01]} 62. Kg3 $11 {[%emt 0:00:10]} Kh6 {[%emt 0:00:03]} 63. Kh4 {[%emt 0:00:06]} f4 {[%emt 0:00:12]} 64. exf4 exf4 65. Rg2 1/2-1/2

[Event "3rd FIDE WCCC Rapid U12 2019"]
[Site "Minsk"]
[Date "2019.08.16"]
[Round "4.1"]
[White "Krivenko, Dmitry"]
[Black "Cherniaiev, Tykhon"]
[Result "0-1"]
[ECO "E05"]
[WhiteElo "1940"]
[BlackElo "2112"]
[Annotator "ChessBase"]
[PlyCount "116"]
[EventDate "2019.08.16"]
[EventType "swiss"]
[EventCountry "BLR"]
[SourceTitle "playchess.com"]
[Source "ChessBase"]
[SourceQuality "1"]
[TimeControl "600+5"]

1. d4 {[%emt 0:00:00]} d5 {[%emt 0:00:00]} 2. c4 {[%emt 0:00:00]} dxc4 {[%emt 0:00:00]} 3. Nf3 {[%emt 0:00:01]} Nf6 {[%emt 0:00:05]} 4. g3 {[%emt 0:00:02]} e6 {[%emt 0:00:10]} 5. Bg2 {[%emt 0:00:01]} Be7 {[%emt 0:00:27]} 6. O-O {[%emt 0:00:03]} O-O {[%emt 0:00:03]} 7. Na3 {[%emt 0:00:02]} c5 {[%emt 0:00:27]} 8. Nxc4 {[%emt 0:00:12]} Nc6 {[%emt 0:00:13]} 9. dxc5 {[%emt 0:00:33]} Bxc5 {[%emt 0:00:05]} 10. Bg5 {[%emt 0:00:29]} Qe7 {[%emt 0:00:16]} 11. Nfe5 {[%emt 0:00:40]} Nxe5 {[%emt 0:00:20]} 12. Nxe5 {[%emt 0:00:02]} h6 {[%emt 0:00:20]} 13. Bxf6 {[%emt 0:00:24]} Qxf6 {[%emt 0:00:02]} 14. Nc4 {[%emt 0:00:44]} Rb8 {[%emt 0:00:52]} 15. Qb3 {[%emt 0:00:44]} b6 {[%emt 0:00:53]} 16. Nd2 {[%emt 0:00:39]} Be7 {[%emt 0:01:10]} 17. Rac1 {[%emt 0:00:53]} Ba6 {[%emt 0:01:01]} 18. Bf3 {[%emt 0:00:59]} Rfc8 {[%emt 0:00:16]} 19. Rxc8+ {[%emt 0:00:57]} Bxc8 {[%emt 0:00:34]} 20. Rc1 {[%emt 0:00:41]} Qd4 {[%emt 0:00:49]} 21. Qc3 {[%emt 0:00:46]} Qxc3 {[%emt 0:00:52]} 22. Rxc3 {[%emt 0:00:02]} Bb4 {[%emt 0:00:28]} 23. Rc2 {[%emt 0:01:07]} Ba6 {[%emt 0:00:37]} 24. Nb3 {[%emt 0:00:32]} Rc8 {[%emt 0:00:11]} 25. Rxc8+ {[%emt 0:00:08]} Bxc8 {[%emt 0:00:01]} 26. Nd4 {[%emt 0:00:06]} a5 {[%emt 0:00:55]} 27. Nc6 {[%emt 0:00:03]} Bf8 {[%emt 0:00:01]} 28. Ne5 {[%emt 0:00:38]} Bd6 {[%emt 0:00:11]} 29. Nc4 {[%emt 0:00:03]} Bc5 {[%emt 0:00:01]} 30. a3 {[%emt 0:00:05]} Ba6 {[%emt 0:00:07]} 31. Nd2 {[%emt 0:00:15]} f5 {[%emt 0:00:09]} 32. e4 {[%emt 0:00:22]} Kf7 {[%emt 0:00:11]} 33. exf5 {[%emt 0:00:12]} exf5 {[%emt 0:00:01]} 34. Bd5+ {[%emt 0:00:01]} Kf6 {[%emt 0:00:08]} 35. Nc4 {[%emt 0:00:05]} g5 {[%emt 0:00:16]} 36. Kg2 {[%emt 0:00:01]} a4 {[%emt 0:00:12]} 37. f4 {[%emt 0:00:14]} Bd4 {[%emt 0:00:09]} 38. Kf3 {[%emt 0:00:13]} b5 {[%emt 0:00:06]} 39. Nd2 {[%emt 0:00:08]} Bxb2 {[%emt 0:00:01]} 40. Nb1 {[%emt 0:00:01]} Bc1 {[%emt 0:00:15]} 41. h4 {[%emt 0:00:08]} g4+ {[%emt 0:00:04]} 42. Kf2 {[%emt 0:00:03]} Ke7 {[%emt 0:00:04]} 43. Bc6 {[%emt 0:00:06]} Kd6 {[%emt 0:00:04]} 44. Be8 {[%emt 0:00:02]} Bb2 {[%emt 0:00:13]} 45. Ke3 {[%emt 0:00:06]} Kc5 {[%emt 0:00:13]} 46. Bf7 {[%emt 0:00:03]} Bd4+ {[%emt 0:00:02]} 47. Ke2 {[%emt 0:00:10]} b4+ {[%emt 0:00:02]} 48. Ke1 {[%emt 0:00:02]} b3 {[%emt 0:00:03]} 49. Be6 {[%emt 0:00:04]} Bd3 {[%emt 0:00:01]} 50. Nd2 {[%emt 0:00:09]} b2 {[%emt 0:00:01]} 51. Kd1 {[%emt 0:00:03]} b1=Q+ {[%emt 0:00:02]} 52. Nxb1 {[%emt 0:00:02]} Bxb1 {[%emt 0:00:01]} 53. h5 {[%emt 0:00:06]} Bb2 {[%emt 0:00:01]} 54. Kd2 {[%emt 0:00:04]} Bxa3 55. Bf7 {[%emt 0:00:09]} Bb4+ {[%emt 0:00:03]} 56. Kc1 {[%emt 0:00:02]} Be4 {[%emt 0:00:01]} 57. Kb2 {[%emt 0:00:03]} a3+ {[%emt 0:00:02]} 58. Ka1 {[%emt 0:00:01]} Bd5 {[%emt 0:00:07]} 0-1

[Event "3rd FIDE WCCC Rapid U12 2019"]
[Site "Minsk"]
[Date "2019.08.16"]
[Round "4.2"]
[White "Saveljev, Ivan"]
[Black "Siniukovich, Ivan"]
[Result "1-0"]
[ECO "C02"]
[WhiteElo "2040"]
[BlackElo "1685"]
[Annotator "NA"]
[PlyCount "51"]
[EventDate "2019.08.16"]
[EventType "swiss"]
[EventCountry "BLR"]
[SourceTitle "playchess.com"]
[Source "ChessBase"]
[SourceQuality "1"]
[TimeControl "600+5"]

1. e4 {[%emt 0:00:00]} e6 {[%emt 0:00:00]} 2. d4 {[%emt 0:00:00]} d5 {[%emt 0:00:00]} 3. e5 {[%emt 0:00:00]} c5 {[%emt 0:00:00]} 4. c3 {[%emt 0:00:00]} Nc6 {[%emt 0:00:00]} 5. Nf3 {[%emt 0:00:01]} Qb6 {[%emt 0:00:00]} 6. a3 {[%emt 0:00:01]} cxd4 {[%emt 0:00:12]} 7. cxd4 {[%emt 0:00:01]} Nh6 {[%emt 0:00:01]} 8. b4 {[%emt 0:00:06]} Nf5 {[%emt 0:00:01]} 9. Be3 {[%emt 0:00:07]} Be7 {[%emt 0:00:08]} 10. Bd3 {[%emt 0:00:04]} O-O {[%emt 0:00:36]} 11. O-O {[%emt 0:00:08]} Bd7 {[%emt 0:00:55]} 12. Nc3 {[%emt 0:00:34]} Nxe3 {[%emt 0:00:41]} 13. fxe3 {[%emt 0:00:03]} Rac8 {[%emt 0:00:03]} 14. Na4 {[%emt 0:00:05]} Qd8 {[%emt 0:00:16]} 15. Nc5 {[%emt 0:00:09]} b6 {[%emt 0:00:44]} 16. Nxd7 {[%emt 0:00:10]} Qxd7 {[%emt 0:00:01]} 17. Rc1 {[%emt 0:00:06]} Nb8 {[%emt 0:02:19]} 18. Rc2 {[%emt 0:00:35]} Rxc2 19. Qxc2 {[%emt 0:00:01]} h6 {[%emt 0:01:00]} 20. Rc1 {[%emt 0:00:04]} a5 {[%emt 0:00:52]} 21. Qc3 {[%emt 0:01:14]} Qa4 {[%emt 0:01:35]} 22. Rb1 {[%emt 0:02:28]} Nd7 {[%emt 0:02:17]} 23. bxa5 {[%emt 0:00:12]} Qxa5 {[%emt 0:00:05]} 24. Qxa5 {[%emt 0:00:03]} bxa5 25. Rb7 {[%emt 0:00:01]} Rd8 {[%emt 0:00:01]} 26. Bb5 {[%emt 0:00:04]} 1-0

[Event "3rd FIDE WCCC Rapid U12 2019"]
[Site "Minsk"]
[Date "2019.08.16"]
[Round "4.3"]
[White "Kurchenko, Egor"]
[Black "Sidletskyi, Ivan"]
[Result "0-1"]
[ECO "B50"]
[WhiteElo "1850"]
[BlackElo "1986"]
[Annotator "NA"]
[PlyCount "47"]
[EventDate "2019.08.16"]
[EventType "swiss"]
[EventCountry "BLR"]
[SourceTitle "playchess.com"]
[Source "ChessBase"]
[SourceQuality "1"]
[TimeControl "600+5"]

1. e4 {[%emt 0:00:00]} c5 {[%emt 0:00:00]} 2. Nf3 {[%emt 0:00:00]} d6 {[%emt 0:00:00]} 3. d4 {[%emt 0:00:00]} Nf6 {[%emt 0:00:00]} 4. Bd3 {[%emt 0:00:53]} cxd4 {[%emt 0:00:03]} 5. Nxd4 {[%emt 0:00:07]} g6 {[%emt 0:00:02]} 6. O-O {[%emt 0:00:12]} Bg7 {[%emt 0:00:03]} 7. c3 {[%emt 0:00:16]} O-O {[%emt 0:00:11]} 8. Bc2 {[%emt 0:01:25]} Nc6 {[%emt 0:00:10]} 9. f4 {[%emt 0:00:21]} Qb6 {[%emt 0:00:35]} 10. Kh1 {[%emt 0:00:40]} e5 {[%emt 0:00:35]} 11. Nxc6 {[%emt 0:01:06]} Qxc6 {[%emt 0:00:01]} 12. fxe5 {[%emt 0:00:20]} dxe5 {[%emt 0:00:46]} 13. Qe1 {[%emt 0:00:28]} b5 {[%emt 0:01:30]} 14. Bg5 {[%emt 0:00:29]} h6 {[%emt 0:00:45]} 15. Bh4 {[%emt 0:00:21]} Bb7 {[%emt 0:01:34]} 16. Nd2 {[%emt 0:00:14]} b4 {[%emt 0:00:22]} 17. cxb4 {[%emt 0:01:03]} g5 {[%emt 0:00:08]} 18. Rc1 {[%emt 0:01:31]} gxh4 {[%emt 0:00:07]} 19. Qxh4 {[%emt 0:00:04]} Rad8 {[%emt 0:00:37]} 20. Bb3 {[%emt 0:00:30]} Qd7 {[%emt 0:01:02]} 21. Rcd1 {[%emt 0:01:13]} Qg4 {[%emt 0:00:12]} 22. Qxg4 {[%emt 0:00:19]} Nxg4 {[%emt 0:00:01]} 23. Kg1 {[%emt 0:00:04]} Ne3 {[%emt 0:00:01]} 24. Nb1 0-1

[Event "3rd FIDE WCCC Rapid U12 2019"]
[Site "Minsk"]
[Date "2019.08.16"]
[Round "4.4"]
[White "Chung, Ethan Cheung Jing"]
[Black "Ponomarev, Vsevolod"]
[Result "0-1"]
[ECO "B21"]
[WhiteElo "1656"]
[BlackElo "1980"]
[Annotator "NA"]
[PlyCount "94"]
[EventDate "2019.08.16"]
[EventType "swiss"]
[EventCountry "BLR"]
[SourceTitle "playchess.com"]
[Source "ChessBase"]
[SourceQuality "1"]
[TimeControl "600+5"]

1. e4 {[%emt 0:00:00]} c5 {[%emt 0:00:00]} 2. d4 {[%emt 0:00:00]} cxd4 {[%emt 0:00:01]} 3. c3 {[%emt 0:00:00]} dxc3 {[%emt 0:00:04]} 4. Nxc3 {[%emt 0:00:00]} d6 {[%emt 0:00:10]} 5. Nf3 {[%emt 0:00:01]} Nf6 {[%emt 0:00:03]} 6. Bc4 {[%emt 0:00:01]} e6 {[%emt 0:00:15]} 7. O-O {[%emt 0:00:03]} Be7 {[%emt 0:00:05]} 8. Qe2 {[%emt 0:00:03]} O-O {[%emt 0:00:34]} 9. Rd1 {[%emt 0:00:01]} Qa5 {[%emt 0:00:02]} 10. Bf4 {[%emt 0:00:14]} Rd8 {[%emt 0:00:51]} 11. a3 {[%emt 0:00:07]} Nc6 {[%emt 0:00:19]} 12. b4 {[%emt 0:01:03]} Qh5 {[%emt 0:00:02]} 13. h3 {[%emt 0:00:13]} e5 {[%emt 0:00:42]} 14. Bg3 {[%emt 0:00:08]} Bf8 {[%emt 0:02:08]} 15. Nd5 {[%emt 0:01:13]} Nxd5 {[%emt 0:00:17]} 16. Bxd5 {[%emt 0:00:04]} Ne7 {[%emt 0:00:28]} 17. Rac1 {[%emt 0:00:34]} Nxd5 {[%emt 0:00:17]} 18. Rxd5 {[%emt 0:00:03]} Be6 {[%emt 0:00:02]} 19. Rd2 {[%emt 0:00:10]} Rac8 {[%emt 0:00:09]} 20. Rcd1 {[%emt 0:00:39]} Be7 {[%emt 0:00:43]} 21. Qb5 {[%emt 0:00:26]} b6 {[%emt 0:01:17]} 22. Qa4 {[%emt 0:00:26]} Rd7 {[%emt 0:00:54]} 23. Nxe5 {[%emt 0:01:08]} Rdc7 {[%emt 0:00:18]} 24. Nf3 {[%emt 0:00:41]} h6 {[%emt 0:00:37]} 25. Bxd6 Bxd6 {[%emt 0:00:01]} 26. Rxd6 {[%emt 0:00:25]} b5 {[%emt 0:00:51]} 27. Qa5 {[%emt 0:00:24]} Bxh3 {[%emt 0:00:24]} 28. Rd8+ {[%emt 0:01:07]} Kh7 {[%emt 0:00:01]} 29. R8d5 {[%emt 0:00:24]} Qg6 {[%emt 0:00:11]} 30. Ne1 {[%emt 0:00:40]} Be6 {[%emt 0:00:16]} 31. R5d4 {[%emt 0:00:21]} Rc1 {[%emt 0:00:10]} 32. Qxb5 {[%emt 0:00:12]} Bb3 {[%emt 0:00:10]} 33. Rxc1 {[%emt 0:00:13]} Rxc1 {[%emt 0:00:01]} 34. Qe2 {[%emt 0:00:10]} Qc6 {[%emt 0:00:07]} 35. g3 {[%emt 0:00:18]} Qc3 {[%emt 0:00:01]} 36. Rd2 {[%emt 0:00:06]} Bc4 {[%emt 0:00:01]} 37. Qe3 {[%emt 0:00:54]} Qxe3 {[%emt 0:00:01]} 38. fxe3 {[%emt 0:00:01]} Rxe1+ {[%emt 0:00:01]} 39. Kf2 {[%emt 0:00:02]} Ra1 {[%emt 0:00:06]} 40. Rc2 {[%emt 0:00:05]} Bd3 {[%emt 0:00:04]} 41. Rc3 {[%emt 0:00:00]} Bxe4 {[%emt 0:00:01]} 42. Ke2 {[%emt 0:00:01]} Ra2+ {[%emt 0:00:04]} 43. Kf1 {[%emt 0:00:01]} Kg6 {[%emt 0:00:05]} 44. Rb3 {[%emt 0:00:01]} Kf5 {[%emt 0:00:12]} 45. b5 {[%emt 0:00:04]} Ke5 {[%emt 0:00:09]} 46. Ke1 {[%emt 0:00:02]} f5 {[%emt 0:00:06]} 47. Kd1 {[%emt 0:00:06]} Bc2+ {[%emt 0:00:01]} 0-1

[Event "3rd FIDE WCCC Rapid U12 2019"]
[Site "Minsk"]
[Date "2019.08.16"]
[Round "4.5"]
[White "Kopylov, Artem"]
[Black "Sahib Singh"]
[Result "0-1"]
[ECO "E04"]
[WhiteElo "1901"]
[BlackElo "1556"]
[Annotator "NA"]
[PlyCount "60"]
[EventDate "2019.08.16"]
[EventType "swiss"]
[EventCountry "BLR"]
[SourceTitle "playchess.com"]
[Source "ChessBase"]
[SourceQuality "1"]
[TimeControl "600+5"]

1. d4 {[%emt 0:00:00]} d5 {[%emt 0:00:00]} 2. c4 {[%emt 0:00:00]} e6 {[%emt 0:00:00]} 3. Nf3 {[%emt 0:00:00]} Nf6 {[%emt 0:00:00]} 4. g3 {[%emt 0:00:00]} dxc4 {[%emt 0:00:01]} 5. Bg2 {[%emt 0:00:02]} Nc6 {[%emt 0:00:04]} 6. O-O {[%emt 0:00:06]} Bd7 {[%emt 0:00:15]} 7. Qc2 {[%emt 0:00:36]} b5 {[%emt 0:00:30]} 8. a3 {[%emt 0:01:32]} Be7 {[%emt 0:00:29]} 9. Nc3 {[%emt 0:00:24]} Rb8 {[%emt 0:00:05]} 10. Rd1 {[%emt 0:01:05]} O-O {[%emt 0:00:39]} 11. Ne5 {[%emt 0:00:46]} Qe8 {[%emt 0:01:05]} 12. Bf4 {[%emt 0:00:14]} Bd6 {[%emt 0:00:59]} 13. e4 {[%emt 0:00:42]} Bxe5 {[%emt 0:00:26]} 14. dxe5 {[%emt 0:00:09]} Ng4 {[%emt 0:00:16]} 15. a4 {[%emt 0:00:42]} a6 {[%emt 0:00:15]} 16. axb5 {[%emt 0:00:47]} axb5 {[%emt 0:00:01]} 17. Qd2 {[%emt 0:00:24]} Ngxe5 {[%emt 0:00:08]} 18. Bxe5 {[%emt 0:00:05]} Nxe5 {[%emt 0:00:01]} 19. Ra7 {[%emt 0:00:01]} Qc8 {[%emt 0:00:10]} 20. Qf4 {[%emt 0:00:48]} f6 {[%emt 0:00:07]} 21. Qe3 {[%emt 0:01:11]} Ra8 {[%emt 0:01:31]} 22. Rxa8 {[%emt 0:00:15]} Qxa8 {[%emt 0:00:01]} 23. Qc5 {[%emt 0:00:20]} Qc6 {[%emt 0:00:15]} 24. Qe3 {[%emt 0:00:30]} Rd8 {[%emt 0:00:43]} 25. f4 {[%emt 0:00:01]} Ng4 {[%emt 0:00:01]} 26. Qd4 {[%emt 0:00:21]} e5 {[%emt 0:00:06]} 27. Qd5+ {[%emt 0:00:16]} Qxd5 28. Rxd5 {[%emt 0:00:02]} Ne3 {[%emt 0:00:14]} 29. Rd2 {[%emt 0:00:02]} Nxg2 30. Kxg2 {[%emt 0:00:01]} Bh3+ {[%emt 0:00:03]} 0-1